bitfinex/quotes_BTCUSD_20260215
["timestamp","ask_amount","ask_price","bid_price","bid_amount"]
[1771178947444,0.02377392,68709.0,68696.0,0.1388]
[1771178947652,0.02377392,68709.0,68688.0,0.02255929]
[1771178947653,0.02390268,68709.0,68694.0,0.15899608]
[1771178947843,0.02390268,68709.0,68685.0,0.15899608]
[1771178947844,0.07278112,68700.0,68685.0,0.15899608]
[1771178948040,0.0473843,68707.0,68685.0,0.15899608]
[1771178948041,0.02377392,68705.0,68685.0,0.15899608]
[1771178948237,0.00012876,68709.0,68685.0,0.15899608]
[1771178948238,0.02377392,68708.0,68685.0,0.15899608]
[1771178948441,0.02377392,68708.0,68684.0,0.0932]
[1771178948442,0.07277493,68705.0,68698.0,0.0002]
[1771178948718,0.00012876,68709.0,68684.0,0.0932]
[1771178948719,0.02377392,68704.0,68684.0,0.0932]
[1771178949032,0.00012876,68709.0,68691.0,0.0002]
[1771178949033,0.02377392,68701.0,68691.0,0.0002]
[1771178949254,0.00012876,68709.0,68691.0,0.0002]
[1771178949255,0.00012876,68709.0,68692.0,0.15899608]
[1771178949660,0.00012876,68709.0,68691.0,0.0002]
[1771178949661,0.00012876,68709.0,68693.0,0.15899608]
[1771178950001,0.00012876,68709.0,68693.0,0.18155537]
[1771178950663,0.00012876,68709.0,68695.0,0.07278475]
[1771178950918,0.00012876,68709.0,68691.0,0.02275929]
[1771178951108,0.00012876,68709.0,68694.0,0.28804]
[1771178951452,0.00012876,68709.0,68695.0,0.15899608]
[1771178952453,0.00012876,68709.0,68692.0,0.28808]
[1771178952704,0.09595004,68707.0,68703.0,0.17404765]
[1771178952911,0.00012876,68709.0,68691.0,0.29027942]
[1771178952912,0.02306136,68706.0,68696.0,0.19437429]
[1771178953140,0.02377392,68705.0,68691.0,0.0002]
[1771178953558,0.09716023,68703.0,68691.0,0.0002]
[1771178953732,0.02438319,68703.0,68691.0,0.0002]
[1771178953937,0.00012876,68709.0,68684.0,0.15899608]
[1771178953938,0.07278433,68697.0,68684.0,0.15899608]
[1771178954294,0.57263874,68701.0,68679.0,0.16363314]
[1771178954418,0.09716354,68700.0,68679.0,0.16363314]
[1771178954768,0.07278133,68699.0,68679.0,0.16363314]
[1771178954967,0.02438319,68700.0,68679.0,0.16363314]
[1771178956073,0.07278046,68700.0,68679.0,0.16363314]
[1771178956228,0.02438319,68697.0,68679.0,0.16363314]
[1771178957571,0.02438319,68697.0,68679.0,0.16383314]
[1771178960015,0.09715983,68704.0,68682.0,0.02461138]
[1771178960225,0.07277707,68703.0,68683.0,0.16363314]
[1771178960454,0.07277707,68703.0,68685.0,0.16363314]
[1771178961116,0.02438319,68704.0,68687.0,0.16363314]
[1771178961332,0.07290031,68709.0,68680.0,0.57263874]
[1771178961333,0.02451195,68709.0,68689.0,0.16363314]
[1771178961543,0.02451195,68709.0,68691.0,0.16363314]
[1771178961749,0.00012876,68709.0,68694.0,0.02461138]
[1771178961957,0.00012876,68709.0,68687.0,0.28764]
[1771178961958,0.00012876,68709.0,68695.0,0.18824452]
[1771178962607,0.00012876,68709.0,68696.0,0.02461138]
[1771178962800,0.00012876,68709.0,68697.0,0.16363314]
[1771178963555,0.1151,68717.0,68700.0,0.02461138]
[1771178963774,0.25696,68718.0,68701.0,0.18821876]
[1771178964194,0.38806586,68723.0,68700.0,0.00012876]
[1771178964195,0.0004,68727.0,68709.0,0.02461138]
[1771178964650,0.0004,68727.0,68713.0,0.02461138]
[1771178964792,0.0004,68727.0,68709.0,0.07277067]
[1771178964793,0.0004,68727.0,68716.0,0.16352738]
[1771178964994,0.0004,68727.0,68718.0,0.16352738]
[1771178965196,0.0004,68727.0,68718.0,0.18813876]
[1771178967457,0.57263874,68740.0,68718.0,0.02461138]
[1771178967788,0.03653039,68746.0,68722.0,0.16344738]
[1771178967999,0.03653039,68746.0,68720.0,0.57263874]
[1771178968000,0.03653039,68746.0,68724.0,0.16344738]
[1771178968181,0.03653039,68746.0,68726.0,0.16344738]
[1771178968387,0.03653039,68746.0,68726.0,0.16330218]
[1771178968529,0.0004,68734.0,68726.0,0.16330218]
[1771178968927,0.00052883,68734.0,68718.0,0.16341834]
[1771178969128,0.00052883,68734.0,68721.0,0.02461138]
[1771178969332,0.00052883,68734.0,68722.0,0.16341834]
[1771178971434,0.00052883,68734.0,68722.0,0.16327312]
[1771178972177,0.00052883,68734.0,68724.0,0.1633893]
[1771178972378,0.00052883,68734.0,68726.0,0.1633893]
[1771178974619,0.02438319,68745.0,68726.0,0.1633893]
[1771178974801,0.02438319,68744.0,68726.0,0.1633893]
[1771178975003,0.02438319,68744.0,68701.0,0.29111443]
[1771178975004,0.00697675,68728.0,68711.0,0.29007942]
[1771178975208,0.00697675,68728.0,68709.0,0.1633893]
[1771178975209,0.02495898,68728.0,68709.0,0.1633893]
[1771178976291,0.02495898,68728.0,68711.0,0.1633893]
[1771178976292,0.00737675,68728.0,68711.0,0.1633893]
[1771178976493,0.00737675,68728.0,68715.0,0.1633893]
[1771178976695,0.0004,68735.0,68710.0,0.57263874]
[1771178976892,0.57263874,68730.0,68713.0,0.16191396]
[1771178977212,0.0004,68735.0,68716.0,0.02461138]
[1771178977416,0.0004,68735.0,68717.0,0.16191396]
[1771178978275,0.07274464,68734.0,68717.0,0.16191396]
[1771178978614,0.57263874,68730.0,68711.0,0.44943396]
[1771178978819,0.59062097,68730.0,68711.0,0.44943396]
[1771178978962,0.59062097,68730.0,68712.0,0.16191396]
[1771178979159,0.01798223,68730.0,68712.0,0.16191396]
[1771178979577,0.01798223,68730.0,68709.0,0.02461138]
[1771178979578,0.01798223,68726.0,68705.0,0.16191396]
[1771178979788,0.09073386,68727.0,68705.0,0.16191396]
[1771178979994,0.07275849,68721.0,68705.0,0.16191396]
[1771178980208,0.57263874,68730.0,68705.0,0.16191396]
[1771178980209,0.01061319,68723.0,68705.0,0.16191396]
[1771178980418,0.01798223,68723.0,68705.0,0.16191396]
[1771178980669,0.01061319,68727.0,68697.0,0.16191396]
[1771178980670,0.57263874,68720.0,68697.0,0.16191396]
[1771178980870,0.01798223,68718.0,68697.0,0.16191396]
[1771178981185,0.07275704,68722.0,68701.0,0.16191396]
[1771178981778,0.07275813,68721.0,68701.0,0.16191396]
[1771178982815,0.01798223,68722.0,68701.0,0.16191396]
[1771178983276,0.07275796,68721.0,68701.0,0.16191396]
[1771178983445,0.30136548,68718.0,68697.0,0.28748883]
[1771178983646,0.07276405,68716.0,68697.0,0.44940279]
[1771178983977,0.01798223,68716.0,68697.0,0.28748883]
[1771178984175,0.01798223,68716.0,68698.0,0.16191396]
[1771178984655,0.0004,68721.0,68702.0,0.16191396]
[1771178984802,0.0004,68721.0,68704.0,0.16191396]
[1771178985002,0.0004,68721.0,68704.0,0.18643689]
[1771178985262,0.0004,68721.0,68706.0,0.16191396]
[1771178985410,0.0004,68721.0,68708.0,0.16191396]
[1771178985607,0.0004,68721.0,68708.0,0.16176886]
[1771178986669,0.0004,68721.0,68698.0,0.07278217]
[1771178986670,0.0004,68721.0,68710.0,0.16188494]
[1771178987110,0.0004,68721.0,68699.0,0.02452293]
[1771178987299,0.0004,68721.0,68702.0,0.16188494]
[1771178987498,0.0004,68721.0,68704.0,0.16188494]
[1771178988451,0.07276704,68713.0,68698.0,0.16188494]
[1771178988653,0.07276829,68712.0,68698.0,0.16188494]
[1771178988869,0.09074927,68713.0,68698.0,0.16188494]
[1771178989068,0.01798223,68713.0,68698.0,0.16188494]
[1771178989477,0.09074882,68713.0,68698.0,0.16188494]
[1771178989672,0.01798223,68713.0,68698.0,0.16188494]
[1771178990851,0.01798223,68713.0,68708.0,0.0002]
[1771178991493,0.07276965,68710.0,68698.0,0.16188494]
[1771178991700,0.07277468,68706.0,68688.0,0.15766951]
[1771178991871,0.01798223,68708.0,68690.0,0.00040956]
[1771178992401,0.01798223,68708.0,68694.0,0.0002]
[1771178993003,0.09075467,68708.0,68694.0,0.0002]
[1771178993226,0.01798223,68708.0,68694.0,0.0002]
[1771178994861,0.07277567,68705.0,68694.0,0.0002]
[1771178995208,0.07276327,68716.0,68695.0,0.15766951]
[1771178995371,0.01798223,68715.0,68697.0,0.15766951]
[1771178995573,0.01798223,68715.0,68697.0,0.18219244]
[1771178995770,0.09074711,68715.0,68699.0,0.18219244]
[1771178996195,0.32764538,68714.0,68699.0,0.18219244]
[1771178996397,0.34562761,68714.0,68699.0,0.18219244]
[1771178996595,0.07276748,68713.0,68699.0,0.18219244]
[1771178996818,0.34562802,68714.0,68699.0,0.18219244]
[1771178997344,0.07276646,68713.0,68699.0,0.18219244]
[1771178998592,0.09074869,68713.0,68699.0,0.18219244]
[1771178998905,0.09074869,68713.0,68694.0,0.0002]
[1771178998906,0.07277045,68711.0,68694.0,0.18239244]
[1771178999088,0.27286223,68714.0,68696.0,0.15766951]
[1771178999460,0.07276865,68711.0,68697.0,0.18219244]
[1771178999579,0.09075088,68711.0,68697.0,0.18219244]
[1771178999974,0.09075088,68711.0,68699.0,0.0002]
[1771179000219,0.07276967,68710.0,68699.0,0.0002]
[1771179000421,0.57262487,68710.0,68699.0,0.0002]
[1771179000621,0.07277318,68707.0,68699.0,0.0002]
[1771179001005,0.07277691,68704.0,68694.0,0.0002]
[1771179001204,0.01798223,68701.0,68694.0,0.0002]
[1771179001755,0.0727766,68704.0,68694.0,0.0002]
[1771179001961,0.01798223,68709.0,68694.0,0.0002]
[1771179002165,0.07277172,68708.0,68694.0,0.0002]
[1771179002379,0.0727746,68706.0,68694.0,0.0002]
[1771179002585,0.57262487,68710.0,68695.0,0.15766951]
[1771179002794,0.09075185,68710.0,68695.0,0.15766951]
[1771179002941,0.01798223,68710.0,68696.0,0.02452293]
[1771179003141,0.07277233,68708.0,68696.0,0.02452293]
[1771179003351,0.07277247,68709.0,68696.0,0.02452293]
[1771179003732,0.07276715,68713.0,68699.0,0.15766951]
[1771179003938,0.32764595,68714.0,68700.0,0.18219244]
[1771179004150,0.25488,68714.0,68700.0,0.15766951]
[1771179004364,0.25488,68714.0,68703.0,0.02452293]
[1771179004576,0.25488,68714.0,68694.0,0.0002]
[1771179004577,0.25488,68714.0,68704.0,0.18219244]
[1771179004996,0.25488,68714.0,68704.0,0.08610066]
[1771179005208,0.25488,68714.0,68704.0,0.04242781]
[1771179005419,0.25488,68714.0,68704.0,0.01621834]
[1771179007151,0.32764607,68714.0,68694.0,0.0002]
[1771179007353,0.02387381,68713.0,68694.0,0.0002]
[1771179007501,0.02387381,68713.0,68695.0,0.02452293]
[1771179007821,0.02387381,68713.0,68696.0,0.18219244]
[1771179008023,0.02387381,68713.0,68697.0,0.18219244]
[1771179008374,0.29101972,68724.0,68694.0,0.0002]
[1771179008375,0.15383556,68732.0,68702.0,0.02452293]
[1771179008574,0.15383556,68732.0,68700.0,0.57262487]
[1771179008575,0.02387381,68726.0,68704.0,0.02452293]
[1771179008826,0.02387381,68726.0,68707.0,0.15766951]
[1771179009034,0.02387381,68726.0,68709.0,0.15766951]
[1771179009452,0.0004,68714.0,68710.0,0.02452293]
[1771179010083,0.0004,68714.0,68711.0,0.15766951]
[1771179010698,0.64537408,68730.0,68711.0,0.15766951]
[1771179010699,0.09324,68731.0,68711.0,0.15766951]
[1771179010901,0.09324,68731.0,68714.0,0.02452293]
[1771179011047,0.09324,68731.0,68716.0,0.13633593]
[1771179011245,0.09324,68731.0,68716.0,0.11382364]
[1771179011246,0.11724257,68731.0,68716.0,0.11382364]
[1771179011568,0.11724257,68731.0,68704.0,0.2848]
[1771179011569,0.09336876,68731.0,68717.0,0.02452293]
[1771179011923,0.14672,68734.0,68721.0,0.02452293]
[1771179012093,0.0967001,68741.0,68724.0,0.15766951]
[1771179012298,8.88e-05,68741.0,68727.0,0.02452293]
[1771179012511,8.88e-05,68741.0,68730.0,0.15766951]
[1771179012927,8.88e-05,68741.0,68721.0,0.00012876]
[1771179012928,0.03653039,68746.0,68733.0,0.02452293]
[1771179013136,0.03653039,68746.0,68724.0,0.0932]
[1771179013137,0.15383556,68743.0,68725.0,0.02452293]
[1771179013348,0.07274311,68736.0,68722.0,0.2136]
[1771179013551,0.07273975,68739.0,68722.0,0.2136]
[1771179013761,0.07274123,68737.0,68723.0,0.16097566]
[1771179014196,0.02366513,68737.0,68723.0,0.16097566]
[1771179014553,0.02366513,68737.0,68722.0,0.37457566]
[1771179014760,0.57262487,68750.0,68723.0,0.16097566]
[1771179014962,0.0727313,68747.0,68726.0,0.0229751]
[1771179015191,0.02366513,68750.0,68730.0,0.0229751]
[1771179015536,0.02366513,68750.0,68734.0,0.0229751]
[1771179015684,0.02366513,68750.0,68735.0,0.16097566]
[1771179017263,0.02366513,68750.0,68735.0,0.18395076]
[1771179017655,0.02366513,68750.0,68724.0,0.16097566]
[1771179017656,0.15890634,68745.0,68724.0,0.16097566]
[1771179017862,0.02366513,68738.0,68721.0,0.00012876]
[1771179018018,0.09641115,68733.0,68721.0,0.00012876]
[1771179018223,0.09641115,68733.0,68714.0,0.17407952]
[1771179018463,0.02379389,68733.0,68714.0,0.17407952]
[1771179019175,0.02366513,68732.0,68703.0,0.18971725]
[1771179019367,0.00012876,68733.0,68703.0,0.18971725]
[1771179019368,0.0727517,68727.0,68705.0,0.0229751]
[1771179019546,0.0727517,68727.0,68706.0,0.16097566]
[1771179019547,0.09641781,68726.0,68706.0,0.16097566]
[1771179019871,0.07287507,68733.0,68712.0,0.0229751]
[1771179020046,0.09641691,68727.0,68711.0,0.16097566]
[1771179020649,0.02366513,68727.0,68711.0,0.16097566]
[1771179021107,0.07274712,68732.0,68714.0,0.0229751]
[1771179021257,0.07274748,68731.0,68715.0,0.16097566]
[1771179021718,0.15890634,68729.0,68705.0,0.18395076]
[1771179021917,0.57262487,68730.0,68705.0,0.18395076]
[1771179021918,0.02366513,68723.0,68705.0,0.18395076]
[1771179022071,0.07275563,68724.0,68694.0,0.07298583]
[1771179022072,0.0727569,68722.0,68694.0,0.03654958]
[1771179022273,0.2910063,68728.0,68699.0,0.16097566]
[1771179022476,0.2910063,68728.0,68697.0,0.28384]
[1771179022477,0.02366513,68723.0,68703.0,0.16097566]
[1771179022683,0.02366513,68723.0,68705.0,0.16097566]
[1771179022876,0.02366513,68723.0,68707.0,0.18395076]
[1771179023078,0.02366513,68723.0,68709.0,0.16097566]
[1771179023581,0.09641643,68728.0,68711.0,0.16097566]
[1771179023775,0.09641643,68728.0,68711.0,0.18395076]
[1771179024391,0.0004,68727.0,68711.0,0.18395076]
[1771179024809,0.07275927,68720.0,68705.0,0.18395076]
[1771179025006,0.07275802,68721.0,68705.0,0.0229751]
[1771179025264,0.02366513,68720.0,68704.0,0.0002]
[1771179025469,0.02366513,68720.0,68705.0,0.16097566]
[1771179026689,0.02366513,68720.0,68704.0,0.0231751]
[1771179026690,0.02366513,68720.0,68704.0,0.0002]
[1771179027783,0.29140863,68727.0,68697.0,0.0002]
[1771179027784,0.02366513,68713.0,68697.0,0.0002]
[1771179027992,0.07277479,68706.0,68697.0,0.0002]
[1771179028138,0.02366513,68706.0,68697.0,0.0002]
[1771179028663,0.27998513,68713.0,68697.0,0.16117566]
[1771179028877,0.35275221,68713.0,68697.0,0.16117566]
[1771179029096,0.0727756,68705.0,68697.0,0.0002]
[1771179029303,0.15890634,68710.0,68697.0,0.0002]
[1771179029304,0.57262487,68710.0,68697.0,0.00032876]
[1771179029526,0.07277468,68706.0,68697.0,0.00032876]
[1771179029749,0.07277468,68706.0,68694.0,0.0002]
[1771179029750,0.02366513,68704.0,68694.0,0.0002]
[1771179030103,0.02366513,68703.0,68694.0,0.0002]
[1771179031411,0.25632,68713.0,68694.0,0.0002]
[1771179031616,0.02366513,68712.0,68695.0,0.18395076]
[1771179032121,0.8636625,68720.0,68695.0,0.18395076]
[1771179032122,0.02366513,68726.0,68703.0,0.16097566]
[1771179032299,0.02366513,68726.0,68697.0,0.07278302]
[1771179032300,0.02379389,68726.0,68705.0,0.16097566]
[1771179032481,0.02379389,68726.0,68707.0,0.16097566]
[1771179032690,0.02379389,68726.0,68709.0,0.16097566]
[1771179032902,0.02379389,68726.0,68709.0,0.18395076]
[1771179033108,0.00012876,68726.0,68709.0,0.16097566]
[1771179033314,0.00012876,68726.0,68711.0,0.16097566]
[1771179034344,0.00012876,68726.0,68712.0,0.0229751]
[1771179034541,0.00012876,68726.0,68715.0,0.16097566]
[1771179034752,0.00012876,68726.0,68715.0,0.15778954]
[1771179035598,0.00012876,68726.0,68702.0,0.19655731]
[1771179035599,0.00012876,68726.0,68717.0,0.16097566]
[1771179035805,0.00012876,68726.0,68717.0,0.18395076]
[1771179036698,0.0004,68727.0,68717.0,0.18395076]
[1771179036699,0.0004,68727.0,68717.0,0.16097566]
[1771179036909,0.0004,68727.0,68719.0,0.18395076]
[1771179037127,0.28010513,68739.0,68719.0,0.16097566]
[1771179037344,0.28010513,68739.0,68723.0,0.16097566]
[1771179038610,0.28010513,68739.0,68710.0,0.92787371]
[1771179038611,0.07274912,68730.0,68709.0,0.0229751]
[1771179038813,0.02366513,68728.0,68709.0,0.0229751]
[1771179039944,0.00012881,68730.0,68710.0,0.0229751]
[1771179040252,0.00012881,68730.0,68714.0,0.0229751]
[1771179040373,0.00012881,68730.0,68716.0,0.0229751]
[1771179040570,0.1151,68738.0,68719.0,0.16097566]
[1771179040767,0.11552942,68738.0,68721.0,0.16097566]
[1771179040974,0.11552942,68738.0,68716.0,0.35492244]
[1771179040975,0.00042942,68738.0,68724.0,0.0229751]
[1771179041174,0.00042942,68738.0,68726.0,0.18395076]
[1771179041832,0.00042942,68738.0,68715.0,0.07276409]
[1771179041833,0.02366513,68737.0,68706.0,0.16097566]
[1771179042036,0.00042942,68738.0,68717.0,0.0229751]
[1771179042332,0.00042942,68738.0,68713.0,0.28212]
[1771179042333,0.02366513,68734.0,68713.0,0.28212]
[1771179042567,0.18257147,68734.0,68713.0,0.28212]
[1771179042838,0.0004,68728.0,68716.0,0.16097566]
[1771179042977,0.0004,68728.0,68717.0,0.0229751]
[1771179043183,0.0004,68728.0,68718.0,0.16097566]
[1771179048527,0.0004,68728.0,68718.0,0.18359615]
[1771179048729,0.0004,68728.0,68719.0,0.17555927]
[1771179049473,0.0004,68728.0,68719.0,0.15293878]
[1771179049656,0.02366513,68736.0,68722.0,0.02262049]
[1771179049867,0.02366513,68736.0,68723.0,0.17555927]
[1771179050384,0.00042942,68738.0,68724.0,0.02262049]
[1771179050552,0.00042942,68738.0,68726.0,0.17555927]
[1771179051407,0.00042942,68738.0,68726.0,0.15293878]
[1771179051611,0.00042942,68738.0,68724.0,0.02262049]
[1771179051861,0.02337035,68737.0,68717.0,0.02262049]
[1771179052078,0.00042942,68738.0,68702.0,0.19675731]
[1771179052079,0.57232944,68730.0,68702.0,0.19675731]
[1771179052250,0.15179916,68728.0,68708.0,0.02262049]
[1771179052427,0.02337035,68727.0,68710.0,0.17555927]
[1771179052631,0.02337035,68727.0,68715.0,0.0002]
[1771179052844,0.15179916,68727.0,68715.0,0.0002]
[1771179053074,0.02337035,68726.0,68715.0,0.0002]
[1771179053482,0.15179916,68725.0,68715.0,0.0002]
[1771179053682,0.02337035,68724.0,68715.0,0.0002]
[1771179056805,0.15179916,68730.0,68702.0,0.0002]
[1771179056806,0.15179916,68722.0,68702.0,0.17575927]
[1771179057001,0.02337035,68721.0,68702.0,0.17575927]
[1771179057328,0.25508,68730.0,68711.0,0.02262049]
[1771179057508,0.02337035,68729.0,68713.0,0.02262049]
[1771179057704,0.02337035,68729.0,68714.0,0.15293878]
[1771179058130,0.02337035,68729.0,68713.0,0.02262049]
[1771179058337,0.02337035,68729.0,68713.0,0.17555927]
[1771179058745,0.07275297,68726.0,68709.0,0.0002]
[1771179059123,0.02337035,68723.0,68709.0,0.0002]
[1771179059922,0.02337035,68723.0,68710.0,0.15293878]
[1771179060129,0.17516951,68733.0,68712.0,0.15293878]
[1771179060306,0.02337035,68732.0,68712.0,0.15293878]
[1771179060504,0.02337035,68732.0,68713.0,0.02262049]
[1771179060710,0.02337035,68732.0,68714.0,0.15293878]
[1771179061428,0.02337035,68728.0,68714.0,0.15293878]
[1771179062056,0.11494626,68766.0,68729.0,0.18791164]
[1771179062272,0.0004,68743.0,68735.0,0.07274241]
[1771179062533,0.0004,68743.0,68731.0,0.15293878]
[1771179062534,0.15179916,68749.0,68732.0,0.0932]
[1771179062761,0.15179916,68749.0,68724.0,0.36249141]
[1771179062762,0.15179916,68747.0,68727.0,0.29040546]
[1771179062952,0.06976,68758.0,68724.0,0.28156]
[1771179062953,0.07272239,68755.0,68726.0,0.29040546]
[1771179063169,0.11494626,68776.0,68724.0,0.35431394]
[1771179063170,0.02337035,68763.0,68734.0,0.09536384]
[1771179063369,0.02337035,68763.0,68738.0,0.02262049]
[1771179063597,0.02349912,68763.0,68741.0,0.15293878]
[1771179063769,0.02349912,68763.0,68744.0,0.02262049]
[1771179063933,0.00012877,68763.0,68747.0,0.15293878]
[1771179064135,0.00012877,68763.0,68747.0,0.17555927]
[1771179064329,0.02337035,68762.0,68740.0,0.02262049]
[1771179064535,0.15179916,68760.0,68740.0,0.02262049]
[1771179064758,0.17516951,68758.0,68740.0,0.02262049]
[1771179065911,0.07272256,68755.0,68737.0,0.28152]
[1771179066084,0.15179916,68754.0,68737.0,0.28152]
[1771179066730,0.17516951,68750.0,68731.0,0.29040546]
[1771179066944,0.07272951,68748.0,68731.0,0.29040546]
[1771179067148,0.07272951,68748.0,68729.0,0.17555927]
[1771179067149,0.07273056,68747.0,68729.0,0.17555927]
[1771179067312,0.07273056,68747.0,68730.0,0.15293878]
[1771179067672,0.57232944,68760.0,68730.0,0.15293878]
[1771179067673,0.02337035,68758.0,68731.0,0.02262049]
[1771179067874,0.07272435,68753.0,68732.0,0.15293878]
[1771179068020,0.02337035,68751.0,68732.0,0.15293878]
[1771179068367,0.02337035,68751.0,68732.0,0.17555927]
[1771179068528,0.02337035,68751.0,68732.0,0.15293878]
[1771179068709,0.02337035,68751.0,68733.0,0.02262049]
[1771179068914,0.2546,68756.0,68734.0,0.02262049]
[1771179069138,0.2546,68756.0,68737.0,0.15293878]
[1771179069366,0.2546,68756.0,68740.0,0.02262049]
[1771179069592,0.2546,68756.0,68742.0,0.02262049]
[1771179069773,0.1151,68759.0,68742.0,0.17555927]
[1771179069922,0.0004,68758.0,68742.0,0.17555927]
[1771179070343,0.07311946,68758.0,68742.0,0.17555927]
[1771179070553,0.0004,68758.0,68742.0,0.17555927]
[1771179070773,0.0004,68758.0,68743.0,0.17555927]
[1771179070974,0.0004,68758.0,68732.0,0.07274578]
[1771179070975,0.0004,68758.0,68744.0,0.02262049]
[1771179071172,0.0004,68758.0,68745.0,0.17555927]
[1771179071574,0.0004,68758.0,68746.0,0.02262049]
[1771179071784,0.0004,68758.0,68748.0,0.17555927]
[1771179071996,0.0004,68758.0,68749.0,0.02262049]
[1771179072190,0.0004,68758.0,68752.0,0.15293878]
[1771179072383,0.0004,68758.0,68752.0,0.17555927]
[1771179072604,0.0004,68758.0,68747.0,0.02262049]
[1771179073009,0.00012877,68763.0,68745.0,0.28144]
[1771179073010,0.00012877,68763.0,68749.0,0.02262049]
[1771179073620,0.22341927,68763.0,68745.0,0.28144]
[1771179073777,0.17372074,68763.0,68745.0,0.28144]
[1771179073972,0.17372074,68763.0,68745.0,0.30473197]
[1771179074387,0.02314402,68763.0,68745.0,0.46519747]
[1771179074598,0.02314402,68763.0,68746.0,0.2816]
[1771179074792,0.00012877,68763.0,68749.0,0.1604655]
[1771179074987,0.00012877,68763.0,68750.0,0.02329197]
[1771179075396,0.00012877,68763.0,68753.0,0.1604655]
[1771179075589,0.00012877,68763.0,68753.0,0.18375747]
[1771179076698,0.00012877,68763.0,68754.0,0.02329197]
[1771179077905,0.00012877,68763.0,68754.0,0.18375747]
[1771179078473,0.00012877,68763.0,68754.0,0.02329197]
[1771179078679,0.02301525,68762.0,68747.0,0.02329197]
[1771179079210,0.02301525,68762.0,68747.0,0.30477197]
[1771179079957,0.02301525,68762.0,68748.0,0.28148]
[1771179080271,0.02301525,68762.0,68748.0,0.27148]
[1771179080466,0.00012877,68763.0,68748.0,0.27148]
[1771179080673,0.00012877,68763.0,68751.0,0.1604655]
[1771179080869,0.00012877,68763.0,68752.0,0.18375747]
[1771179081754,0.00012877,68763.0,68752.0,0.02329197]
[1771179081891,0.00012877,68763.0,68748.0,0.27148]
[1771179081892,0.00012877,68763.0,68748.0,0.45523747]
[1771179082326,0.00012877,68763.0,68748.0,0.27148]
[1771179082523,0.00012877,68763.0,68747.0,0.02329197]
[1771179082757,0.00012877,68763.0,68749.0,0.1604655]
[1771179082953,0.00012877,68763.0,68748.0,0.30473197]
[1771179084503,0.00012877,68763.0,68749.0,0.02329197]
[1771179084711,0.00012877,68763.0,68750.0,0.18375747]
[1771179084863,0.00012877,68763.0,68751.0,0.02329197]
[1771179085487,0.00012877,68763.0,68750.0,0.28136]
[1771179085488,0.00012877,68763.0,68752.0,0.1604655]
[1771179085689,0.00012877,68763.0,68755.0,0.02329197]
[1771179085894,0.00012877,68763.0,68756.0,0.18375747]
[1771179086882,0.00012877,68763.0,68756.0,0.02329197]
[1771179087133,0.0002292,68764.0,68752.0,0.02329197]
[1771179087357,0.0002292,68764.0,68755.0,0.1604655]
[1771179087511,0.0002292,68764.0,68756.0,0.1604655]
[1771179087811,0.25424,68776.0,68752.0,0.00012877]
[1771179087812,0.25424,68776.0,68760.0,0.1604655]
[1771179088012,0.25424,68776.0,68761.0,0.02329197]
[1771179088386,0.25424,68776.0,68762.0,0.02329197]
[1771179089091,0.0002292,68777.0,68765.0,0.1604655]
[1771179089290,0.0002292,68777.0,68766.0,0.02329197]
[1771179089611,0.0002292,68777.0,68767.0,0.02329197]
[1771179089837,0.0002292,68777.0,68755.0,0.29040546]
[1771179089838,0.0002292,68777.0,68756.0,0.02329197]
[1771179089839,0.09571555,68776.0,68756.0,0.02329197]
[1771179089962,0.09571646,68775.0,68757.0,0.02329197]
[1771179090158,0.09571646,68775.0,68756.0,0.1604655]
[1771179090159,0.02301525,68775.0,68759.0,0.1604655]
[1771179090359,0.02328925,68777.0,68760.0,0.1604655]
[1771179090560,0.02328925,68777.0,68761.0,0.02329197]
[1771179090799,0.02328925,68777.0,68758.0,0.28152]
[1771179090800,0.000274,68777.0,68763.0,0.02329197]
[1771179090974,0.000274,68777.0,68765.0,0.02329197]
[1771179091177,0.000274,68777.0,68758.0,0.28152]
[1771179091178,0.000274,68777.0,68767.0,0.02329197]
[1771179091511,0.000274,68777.0,68767.0,0.18375747]
[1771179091717,0.000274,68777.0,68768.0,0.02329197]
[1771179093006,0.000274,68777.0,68768.0,0.1604655]
[1771179093210,0.000274,68777.0,68770.0,0.02329197]
[1771179093790,0.000274,68777.0,68770.0,0.18375747]
[1771179094134,0.000274,68777.0,68770.0,0.02329197]
[1771179094507,0.18778998,68786.0,68762.0,0.09316]
[1771179094508,0.07269539,68781.0,68762.0,0.02329197]
[1771179094717,0.02301525,68780.0,68762.0,0.02329197]
[1771179094885,0.02301525,68780.0,68762.0,0.1604655]
[1771179095091,0.02301525,68780.0,68763.0,0.02329197]
[1771179095551,0.07269949,68777.0,68763.0,0.02329197]
[1771179095742,0.15057672,68778.0,68760.0,0.28164]
[1771179095945,0.1151,68786.0,68759.0,0.28176]
[1771179095946,0.02301525,68775.0,68759.0,0.28176]
[1771179096085,0.02301525,68775.0,68758.0,0.02329197]
[1771179096287,0.02301525,68775.0,68762.0,0.1604655]
[1771179096491,0.02301525,68775.0,68762.0,0.02329197]
[1771179096688,0.02301525,68775.0,68761.0,0.2818]
[1771179096892,0.02301525,68775.0,68761.0,0.4422655]
[1771179097106,0.02301525,68775.0,68762.0,0.02329197]
[1771179097341,0.02301525,68781.0,68762.0,0.02329197]
[1771179097544,0.02301525,68785.0,68766.0,0.02329197]
[1771179097745,0.09570589,68785.0,68768.0,0.02329197]
[1771179097983,0.02301525,68785.0,68768.0,0.02329197]
[1771179098360,0.02301525,68785.0,68769.0,0.1604655]
[1771179098564,0.02301525,68785.0,68769.0,0.18375747]
[1771179098786,0.02301525,68785.0,68769.0,0.1604655]
[1771179098995,0.02301525,68785.0,68770.0,0.02329197]
[1771179099147,0.1151,68786.0,68761.0,0.2818]
[1771179099148,0.1151,68786.0,68771.0,0.1604655]
[1771179099351,0.02326645,68789.0,68774.0,0.02329197]
[1771179099574,0.07268715,68788.0,68774.0,0.02329197]
[1771179099775,0.02326645,68789.0,68774.0,0.02329197]
[1771179100718,0.02326645,68789.0,68761.0,0.2818]
[1771179100719,0.02339518,68789.0,68776.0,0.02329197]
[1771179100890,0.02301525,68787.0,68771.0,0.28152]
[1771179101213,0.00037993,68789.0,68773.0,0.02329197]
[1771179101460,0.00037993,68789.0,68775.0,0.02329197]
[1771179101631,0.00037993,68789.0,68776.0,0.02329197]
[1771179104119,0.00037993,68789.0,68777.0,0.02273976]
[1771179104321,0.00037993,68789.0,68778.0,0.1583505]
[1771179104543,0.00037993,68789.0,68777.0,0.02273976]
[1771179105658,0.07306637,68789.0,68771.0,0.28136]
[1771179105858,0.07306637,68789.0,68773.0,0.1583505]
[1771179105859,0.00037993,68789.0,68773.0,0.1583505]
[1771179106062,0.16453805,68789.0,68773.0,0.02273976]
[1771179106236,0.02485767,68788.0,68773.0,0.02273976]
[1771179107073,0.02485767,68788.0,68773.0,0.18109026]
[1771179107266,0.02485767,68788.0,68773.0,0.1583505]
[1771179107497,0.00037993,68789.0,68775.0,0.02273976]